fUST/lending_fUST_20250313
["ID","MTS","AMOUNT","RATE_DAILY","PERIOD"]
[356048830,1741847438425,-2676.6163116,0.00013683,2]
[356048835,1741847440747,-949.75236137,0.00013683,2]
[356048845,1741847443077,-371.87278235,0.00013683,2]
[356048847,1741847443485,-737.15565664,0.00013683,2]
[356048848,1741847443498,-1946.40703773,0.00013683,2]
[356048849,1741847443510,-1085.07349445,0.00013683,2]
[356048850,1741847443592,-142960.28189916,0.00013683,2]
[356048851,1741847443603,-3000.0,0.00013683,2]
[356048852,1741847443613,-1000.0,0.0001369,2]
[356048853,1741847443623,-1369.621,0.00013698,2]
[356048854,1741847443633,-151.0,0.00013698,2]
[356048855,1741847443643,-297.863327,0.00013698,2]
[356048856,1741847443653,-500.0,0.00013698,2]
[356048857,1741847443663,-500.0,0.00013698,2]
[356048858,1741847443673,-151.0,0.00013698,2]
[356048859,1741847443683,-163.985573,0.00013698,2]
[356048860,1741847443693,-500.0,0.00013698,2]
[356048861,1741847443703,-163.985573,0.00013698,2]
[356048862,1741847443713,-500.0,0.00013698,2]
[356048863,1741847443724,-277.15650766,0.00013698,2]
[356048864,1741847443734,-500.0,0.00013698,2]
[356048865,1741847443744,-500.0,0.00013698,2]
[356048866,1741847443754,-500.0,0.00013698,2]
[356048867,1741847443764,-517.00029837,0.00013698,2]
[356048868,1741847443775,-500.0,0.00013698,2]
[356048869,1741847443785,-535.61,0.00013698,2]
[356048870,1741847443795,-500.0,0.00013698,2]
[356048871,1741847443805,-500.0,0.00013698,2]
[356048872,1741847443815,-500.0,0.00013698,2]
[356048873,1741847443825,-500.0,0.00013698,2]
[356048874,1741847443836,-500.0,0.00013698,2]
[356048875,1741847443846,-500.0,0.00013698,2]
[356048876,1741847443856,-500.0,0.00013698,2]
[356048877,1741847443866,-500.0,0.00013698,2]
[356048878,1741847443876,-567.94,0.00013698,2]
[356048879,1741847443886,-1183.52,0.00013698,2]
[356048880,1741847443896,-500.0,0.00013698,2]
[356048881,1741847443907,-607.28,0.00013698,2]
[356048882,1741847443917,-500.0,0.00013698,2]
[356048883,1741847443926,-500.0,0.00013698,2]
[356048884,1741847443936,-500.0,0.00013698,2]
[356048885,1741847443946,-500.0,0.00013698,2]
[356048886,1741847443956,-559.42391411,0.00013698,2]
[356048887,1741847443966,-526.68,0.00013698,2]
[356048888,1741847443976,-1823.85,0.00013698,2]
[356048889,1741847443986,-1004.68,0.00013698,2]
[356048890,1741847443996,-500.0,0.00013698,2]
[356048891,1741847444005,-505.55524045,0.00013698,2]
[356048892,1741847444015,-500.0,0.00013698,2]
[356048893,1741847444025,-514.02160902,0.00013698,2]
[356048894,1741847444034,-151.0,0.00013698,2]
[356048895,1741847444044,-151.0,0.00013698,2]
[356048896,1741847444054,-151.0,0.00013698,2]
[356048897,1741847444064,-151.0,0.00013698,2]
[356048898,1741847444074,-151.0,0.00013698,2]
[356048899,1741847444084,-151.0,0.00013698,2]
[356048900,1741847444094,-500.0,0.00013698,2]
[356048901,1741847444104,-500.0,0.00013698,2]
[356048902,1741847444113,-500.0,0.00013698,2]
[356048903,1741847444123,-500.0,0.00013698,2]
[356048904,1741847444132,-676.21,0.00013698,2]
[356048905,1741847444142,-500.0,0.00013698,2]
[356048906,1741847444152,-500.0,0.00013698,2]
[356048907,1741847444161,-523.78495883,0.00013698,2]
[356048908,1741847444172,-500.0,0.00013698,2]
[356048909,1741847444184,-500.0,0.00013698,2]
[356048910,1741847444193,-500.0,0.00013698,2]
[356048911,1741847444205,-500.0,0.00013698,2]
[356048912,1741847444216,-500.0,0.00013698,2]
[356048913,1741847444226,-500.0,0.00013698,2]
[356048914,1741847444236,-500.0,0.00013698,2]
[356048915,1741847444246,-1137.69,0.00013698,2]
[356048916,1741847444256,-1210.2,0.00013698,2]
[356048917,1741847444267,-500.0,0.00013698,2]
[356048918,1741847444276,-500.0,0.00013698,2]
[356048919,1741847444286,-500.0,0.00013698,2]
[356048920,1741847444295,-500.0,0.00013698,2]
[356048921,1741847444305,-500.0,0.00013698,2]
[356048922,1741847444314,-500.0,0.00013698,2]
[356048923,1741847444324,-289.38049662,0.00013698,2]
[356048924,1741847444333,-500.0,0.00013698,2]
[356048925,1741847444343,-500.0,0.00013698,2]
[356048926,1741847444354,-214.87296252,0.00013698,2]
[356048927,1741847444364,-500.0,0.00013698,2]
[356048928,1741847444373,-510.66172506,0.00013698,2]
[356048929,1741847444383,-500.0,0.00013698,2]
[356048930,1741847444393,-500.0,0.00013698,2]
[356048931,1741847444403,-1004.37,0.00013698,2]
[356048932,1741847444412,-500.0,0.00013698,2]
[356048933,1741847444422,-500.0,0.00013698,2]
[356048934,1741847444432,-500.0,0.00013698,2]
[356048935,1741847444442,-735.31,0.00013698,2]
[356048936,1741847444452,-1240.25,0.00013698,2]
[356048937,1741847444462,-500.0,0.00013698,2]
[356048938,1741847444472,-500.0,0.00013698,2]
[356048939,1741847444482,-500.0,0.00013698,2]
[356048940,1741847444491,-500.0,0.00013698,2]
[356048941,1741847444501,-506.42862719,0.00013698,2]
[356048942,1741847444511,-500.0,0.00013698,2]
[356048943,1741847444521,-500.0,0.00013698,2]
[356048944,1741847444531,-500.0,0.00013698,2]
[356048945,1741847444541,-500.0,0.00013698,2]
[356048946,1741847444551,-639.62,0.00013698,2]
[356048947,1741847444561,-500.0,0.00013698,2]
[356048948,1741847444571,-500.0,0.00013698,2]
[356048949,1741847444581,-500.0,0.00013698,2]
[356048950,1741847444591,-1070.8,0.00013698,2]
[356048951,1741847444601,-513.45,0.00013698,2]
[356048952,1741847444610,-513.45,0.00013698,2]
[356048953,1741847444620,-513.45,0.00013698,2]
[356048954,1741847444629,-513.45,0.00013698,2]
[356048955,1741847444638,-513.45,0.00013698,2]
[356048956,1741847444648,-513.45,0.00013698,2]
[356048958,1741847444658,-513.45,0.00013698,2]
[356048960,1741847444667,-513.45,0.00013698,2]
[356048961,1741847444677,-378.03334567,0.00013698,2]
[356048962,1741847444687,-513.45,0.00013698,2]
[356048963,1741847444696,-513.45,0.00013698,2]
[356048964,1741847444705,-513.45,0.00013698,2]
[356048965,1741847444715,-500.0,0.00013698,2]
[356048966,1741847444724,-513.45,0.00013698,2]
[356048967,1741847444734,-513.45,0.00013698,2]
[356048968,1741847444743,-513.45,0.00013698,2]
[356048969,1741847444753,-513.45,0.00013698,2]
[356048970,1741847444762,-513.45,0.00013698,2]
[356048971,1741847444772,-513.45,0.00013698,2]
[356048972,1741847444781,-552.14,0.00013698,2]
[356048973,1741847444790,-500.0,0.00013698,2]
[356048974,1741847444801,-500.0,0.00013698,2]
[356048975,1741847444810,-500.0,0.00013698,2]
[356048976,1741847444819,-605.59125229,0.00013698,2]
[356048977,1741847444829,-500.0,0.00013698,2]
[356048978,1741847444840,-503.11937421,0.00013698,2]
[356048979,1741847444849,-500.0,0.00013698,2]
[356048980,1741847444858,-500.0,0.00013698,2]
[356048981,1741847444868,-500.0,0.00013698,2]
[356048982,1741847444877,-500.0,0.00013698,2]
[356048983,1741847444887,-500.0,0.00013698,2]
[356048984,1741847444896,-1209.22,0.00013698,2]
[356048985,1741847444906,-510.18500182,0.00013698,2]
[356048986,1741847444915,-504.26550712,0.00013698,2]
[356048987,1741847444925,-500.0,0.00013698,2]
[356048988,1741847444934,-731.39,0.00013698,2]
[356048989,1741847444944,-500.0,0.00013698,2]
[356048990,1741847444953,-500.0,0.00013698,2]
[356048991,1741847444963,-500.0,0.00013698,2]
[356048992,1741847444973,-500.0,0.00013698,2]
[356048993,1741847444982,-500.0,0.00013698,2]
[356048994,1741847444992,-500.0,0.00013698,2]
[356048995,1741847445001,-500.0,0.00013698,2]
[356048996,1741847445011,-515.40578296,0.00013698,2]
[356048997,1741847445021,-500.0,0.00013698,2]
[356048998,1741847445031,-500.0,0.00013698,2]
[356048999,1741847445040,-228.80694559,0.00013698,2]
[356049000,1741847445049,-500.0,0.00013698,2]
[356049001,1741847445059,-515.47,0.00013698,2]
[356049002,1741847445068,-500.0,0.00013698,2]
[356049003,1741847445077,-1238.34,0.00013698,2]
[356049004,1741847445087,-500.0,0.00013698,2]
[356049005,1741847445096,-511.78636602,0.00013698,2]
[356049006,1741847445115,-500.0,0.00013698,2]
[356049007,1741847445125,-1363.7,0.00013698,2]
[356049008,1741847445135,-500.0,0.00013698,2]
[356049009,1741847445145,-500.0,0.00013698,2]
[356049010,1741847445155,-1423.86,0.00013698,2]
[356049011,1741847445164,-523.9134013,0.00013698,2]
[356049012,1741847445175,-510.52238598,0.00013698,2]
[356049013,1741847445190,-500.0,0.00013698,2]
[356049014,1741847445199,-2028.72,0.00013698,2]
[356049015,1741847445209,-500.0,0.00013698,2]
[356049016,1741847445220,-500.0,0.00013698,2]
[356049017,1741847445229,-2342.15,0.00013698,2]
[356049018,1741847445239,-500.0,0.00013698,2]
[356049019,1741847445248,-500.0,0.00013698,2]
[356049020,1741847445260,-500.0,0.00013698,2]
[356049021,1741847445270,-500.0,0.00013698,2]
[356049022,1741847445281,-508.51185924,0.00013698,2]
[356049023,1741847445291,-500.0,0.00013698,2]
[356049024,1741847445301,-1322.17,0.00013698,2]
[356049025,1741847445311,-500.0,0.00013698,2]
[356049026,1741847445320,-556.0701671,0.00013698,2]
[356049027,1741847445330,-522.3098963,0.00013698,2]
[356049028,1741847445340,-500.0,0.00013698,2]
[356049029,1741847445349,-500.0,0.00013698,2]
[356049030,1741847445359,-500.0,0.00013698,2]
[356049031,1741847445369,-500.0,0.00013698,2]
[356049032,1741847445379,-151.0,0.00013698,2]
[356049033,1741847445388,-151.0,0.00013698,2]
[356049034,1741847445398,-151.309216,0.00013698,2]
[356049035,1741847445407,-694.15,0.00013698,2]
[356049036,1741847445417,-151.0,0.00013698,2]
[356049037,1741847445427,-151.0,0.00013698,2]
[356049038,1741847445437,-151.0,0.00013698,2]
[356049039,1741847445447,-207.925232,0.00013698,2]
[356049040,1741847445458,-500.0,0.00013698,2]
[356049041,1741847445468,-500.0,0.00013698,2]
[356049042,1741847445477,-500.0,0.00013698,2]
[356049043,1741847445487,-504.64857356,0.00013698,2]
[356049044,1741847445497,-2275.68,0.00013698,2]
[356049045,1741847445507,-428.45444479,0.00013698,2]
[356049046,1741847445517,-500.0,0.00013698,2]
[356049047,1741847445527,-1070.17,0.00013698,2]
[356049048,1741847445538,-4043.01,0.00013698,2]
[356049049,1741847445548,-500.0,0.00013698,2]
[356049050,1741847445557,-1097.48,0.00013698,2]
[356049051,1741847445566,-3532.55,0.00013698,2]
[356049052,1741847445576,-500.0,0.00013698,2]
[356049053,1741847445585,-500.0,0.00013698,2]
[356049054,1741847445596,-2929.46,0.00013698,2]
[356049055,1741847445606,-4221.44,0.00013698,2]
[356049056,1741847445616,-500.0,0.00013698,2]
[356049057,1741847445625,-501.70390516,0.00013698,2]
[356049058,1741847445635,-1106.88,0.00013698,2]
[356049059,1741847445645,-500.0,0.00013698,2]
[356049060,1741847445655,-500.0,0.00013698,2]
[356049061,1741847445665,-500.0,0.00013698,2]
[356049062,1741847445675,-830.46,0.00013698,2]
[356049063,1741847445685,-500.0,0.00013698,2]
[356049064,1741847445695,-676.1,0.00013698,2]
[356049065,1741847445705,-505.01885446,0.00013698,2]
[356049066,1741847445715,-133561.3,0.00013698,2]
[356049067,1741847445725,-1741.53,0.00013698,2]
[356049068,1741847445734,-151.0,0.00013698,2]
[356049069,1741847445744,-500.0,0.00013698,2]
[356049070,1741847445754,-151.0,0.00013698,2]
[356049071,1741847445764,-500.0,0.00013698,2]
[356049072,1741847445774,-151.0,0.00013698,2]
[356049073,1741847445784,-501.97387478,0.00013698,2]
[356049074,1741847445794,-151.0,0.00013698,2]
[356049075,1741847445804,-545.16,0.00013698,2]
[356049077,1741847446031,-500.0,0.00013698,2]
[356049078,1741847446041,-513.34449962,0.00013698,2]
[356049079,1741847446051,-508.42866805,0.00013698,2]
[356049080,1741847446061,-511.83196549,0.00013698,2]
[356049081,1741847446071,-2211.61,0.00013698,2]
[356049082,1741847446080,-500.0,0.00013698,2]
[356049083,1741847446090,-500.0,0.00013698,2]
[356049084,1741847446106,-1951.43,0.00013698,2]
[356049085,1741847446115,-502.89622561,0.00013698,2]
[356049086,1741847446125,-500.0,0.00013698,2]
[356049087,1741847446134,-500.0,0.00013698,2]
[356049088,1741847446144,-500.0,0.00013698,2]
[356049089,1741847446153,-500.0,0.00013698,2]
[356049091,1741847446162,-2787.96,0.00013698,2]
[356049092,1741847446171,-976.73,0.00013698,2]
[356049093,1741847446184,-2272.96,0.00013698,2]
[356049094,1741847446193,-500.0,0.00013698,2]
[356049095,1741847446202,-500.0,0.00013698,2]
[356049096,1741847446211,-500.0,0.00013698,2]
[356049097,1741847446222,-500.0,0.00013698,2]
[356049098,1741847446231,-500.0,0.00013698,2]
[356049100,1741847446241,-500.0,0.00013698,2]
[356049101,1741847446250,-1551.96,0.00013698,2]
[356049102,1741847446261,-2959.5,0.00013698,2]
[356049103,1741847446272,-3948.41,0.00013698,2]
[356049104,1741847446282,-508.0091327,0.00013698,2]
[356049105,1741847446291,-3948.41,0.00013698,2]
[356049106,1741847446300,-3948.41,0.00013698,2]
[356049107,1741847446310,-500.0,0.00013698,2]
[356049108,1741847446320,-3948.41,0.00013698,2]
[356049109,1741847446329,-3948.41,0.00013698,2]
[356049110,1741847446338,-3948.41,0.00013698,2]
[356049111,1741847446348,-640.71,0.00013698,2]
[356049112,1741847446357,-3948.41,0.00013698,2]
[356049113,1741847446366,-3948.41,0.00013698,2]
[356049114,1741847446375,-3948.41,0.00013698,2]
[356049115,1741847446384,-3948.41,0.00013698,2]
[356049116,1741847446393,-3948.41,0.00013698,2]
[356049117,1741847446403,-3948.41,0.00013698,2]
[356049118,1741847446412,-3948.41,0.00013698,2]
[356049119,1741847446421,-3948.41,0.00013698,2]
[356049120,1741847446430,-3948.41,0.00013698,2]
[356049121,1741847446440,-1088.14,0.00013698,2]
[356049122,1741847446449,-500.0,0.00013698,2]
[356049123,1741847446458,-3948.41,0.00013698,2]
[356049124,1741847446467,-3948.41,0.00013698,2]
[356049125,1741847446477,-509.59511602,0.00013698,2]
[356049126,1741847446486,-3948.41,0.00013698,2]
[356049127,1741847446495,-3948.41,0.00013698,2]
[356049128,1741847446505,-3948.41,0.00013698,2]
[356049129,1741847446514,-3948.41,0.00013698,2]
[356049130,1741847446523,-3948.41,0.00013698,2]
[356049131,1741847446533,-3948.41,0.00013698,2]
[356049132,1741847446542,-3948.63638031,0.00013698,2]
[356049133,1741847446551,-500.0,0.00013698,2]
[356049134,1741847446560,-500.0,0.00013698,2]
[356049135,1741847446570,-7050.13,0.00013698,2]
[356049136,1741847446579,-1791.5,0.00013698,2]
[356049137,1741847446589,-500.0,0.00013698,2]
[356049138,1741847446599,-500.0,0.00013698,2]
[356049139,1741847446608,-1089.89,0.00013698,2]
[356049140,1741847446618,-18215.18,0.00013698,2]
[356049141,1741847446627,-504.12127004,0.00013698,2]
[356049142,1741847446637,-500.0,0.00013698,2]
[356049143,1741847446646,-664.37,0.00013698,2]
[356049144,1741847446656,-500.0,0.00013698,2]
[356049145,1741847446665,-500.0,0.00013698,2]
[356049146,1741847446675,-500.0,0.00013698,2]
[356049147,1741847446684,-1044.16,0.00013698,2]
[356049148,1741847446693,-426.97135637,0.00013698,2]
[356049149,1741847447603,-73.02864363,0.00013698,2]
[356049150,1741847447613,-500.0,0.00013698,2]
[356049151,1741847447624,-196.33665202,0.00013698,2]
[356049152,1741847447636,-303.66334798,0.00013698,2]
[356049153,1741847447646,-500.0,0.00013698,2]
[356049154,1741847447655,-500.0,0.00013698,2]
[356049155,1741847447665,-500.0,0.00013698,2]
[356049156,1741847447675,-2373.62,0.00013698,2]
[356049157,1741847447684,-3131.40562158,0.00013698,2]
[356049158,1741847447697,-1788.70437842,0.00013698,2]
[356049159,1741847447707,-649.05,0.00013698,2]
[356049160,1741847447716,-500.0,0.00013698,2]
[356049161,1741847447726,-500.0,0.00013698,2]
[356049162,1741847447736,-500.0,0.00013698,2]
[356049163,1741847447746,-500.0,0.00013698,2]
[356049164,1741847447755,-500.0,0.00013698,2]
[356049165,1741847447764,-1649.77,0.00013698,2]
[356049166,1741847447774,-454.62512965,0.00013698,2]
[356049167,1741847447784,-500.0,0.00013698,2]
[356049168,1741847447793,-625.52026535,0.00013698,2]
[356049169,1741847447803,-527.65,0.00013698,2]
[356049170,1741847447812,-504.68022658,0.00013698,2]
[356049171,1741847447824,-4942.05554017,0.00013698,2]
[356049172,1741847447836,-753.5,0.00013698,2]
[356049173,1741847450256,-217.18573427,0.00013698,2]
[356049174,1741847466054,-500.0,0.00013598,2]
[356049175,1741847477275,-500.0,0.00013598,2]
[356049176,1741847633337,349.83743393,0.00012692,2]
[356049177,1741847633869,-150.16256607,0.00012692,2]
[356049178,1741847791826,-330.34198109,0.00013068,2]
[356049179,1741847797629,-150.0,0.00012937,2]
[356049180,1741847815298,-519.65801891,0.00012937,2]
[356049181,1741847815332,-669.65801891,0.00013068,2]
[356049182,1741847815365,-169.57936196,0.00013573,2]
[356049183,1741847815397,-300.0,0.00013582,2]
[356049184,1741847815431,-154.83976971,0.00013582,2]
[356049185,1741847815464,-186.68817571,0.00013582,2]
[356049186,1741847815496,-530.23648274,0.00013582,2]
[356049187,1741847815516,-519.65801891,0.00013583,2]
[356049188,1741847815536,-669.65801891,0.00013583,2]
[356049189,1741847815548,-169.57936196,0.00013583,2]
[356049190,1741847815559,-300.0,0.00013583,2]
[356049191,1741847815578,-154.83976971,0.00013583,2]
[356049192,1741847815589,-186.68817571,0.00013583,2]
[356049193,1741847815602,-530.23648274,0.00013583,2]
[356049194,1741847815618,-4938.68034412,0.00013583,2]
[356049195,1741847915313,-300.0,0.00013446,2]
[356049196,1741847915362,-1003.14816695,0.00013572,2]
[356049197,1741847915400,-300.0,0.00013582,2]
[356049198,1741847915424,-300.0,0.00013583,2]
[356049199,1741847915436,-1003.14816695,0.00013583,2]
[356049200,1741847915448,-300.0,0.00013583,2]
[356049201,1741847915464,-9793.7036661,0.00013583,2]
[356049202,1741848122809,-162.95480447,0.00012556,2]
[356049203,1741848309317,-254.33352981,0.0001243,2]
[356049204,1741848335059,-860.47108389,0.0001243,5]
[356049205,1741848346482,-860.47108389,0.00012306,2]
[356049207,1741848501270,-170.24743234,0.00012305,2]
[356049209,1741848548120,-4701.22672511,0.0001243,5]
[356049210,1741848548142,-1584.63800003,0.0001243,2]
[356049211,1741848548164,-170.24743234,0.00012555,2]
[356049212,1741848548188,-1584.63800003,0.00012556,2]
[356049213,1741848548209,-150.0,0.00012556,2]
[356049214,1741848548231,-168.0,0.00012558,2]
[356049215,1741848548252,-159.93306698,0.00013,2]
[356049216,1741848548274,-168.0,0.00013289,2]
[356049217,1741848548296,-599.829,0.00013424,2]
[356049218,1741848548319,-175.6588661,0.00013424,2]
[356049219,1741848548343,-300.0,0.00013498,2]
[356049220,1741848548365,-2076.29584612,0.00013499,2]
[356049250,1741848632844,-544.31043749,0.00013364,2]
[356049251,1741848632874,-1476.81258142,0.00013364,2]
[356049252,1741848632884,-300.0,0.00013498,2]
[356049253,1741848632893,-12403.32823153,0.00013499,2]
[356049254,1741848632911,-1703.63404081,0.00013499,2]
[356049255,1741848632920,-252.53920294,0.00013499,2]
[356049256,1741848632931,-186.8724011,0.000135,2]
[356049257,1741848632940,-155.4628988,0.000135,2]
[356049258,1741848632950,-1133.7637503,0.000135,2]
[356049259,1741848632960,-186.8724011,0.000135,2]
[356049260,1741848632969,-626.0617558,0.000135,2]
[356049261,1741848632979,-155.4628988,0.000135,2]
[356049262,1741848632988,-186.8724011,0.000135,2]
[356049263,1741848632997,-186.8724011,0.000135,2]
[356049265,1741848633007,-329.0306637,0.000135,2]
[356049266,1741848633017,-559.6044626,0.000135,2]
[356049267,1741848633027,-186.8724011,0.000135,2]
[356049268,1741848633037,-186.8724011,0.000135,2]
[356049270,1741848633046,-1000.0,0.00013575,2]
[356049272,1741848633056,-168.0,0.00013583,2]
[356049274,1741848633066,-18425.99427612,0.00013583,2]
[356049316,1741848638525,-973.19864139,0.000135,2]
[356049383,1741848982359,-191.31322195,0.00012486,2]
[356049384,1741849206473,-169.63447037,0.00012115,2]
[356049385,1741849593129,-205.55502106,0.00011587,2]
[356049386,1741849593151,-205.55502106,0.00011704,2]
[356049387,1741849593177,-1000.0,0.00012061,2]
[356049388,1741849593198,-444.6764948,0.00012612,2]
[356049389,1741849593219,-500.0,0.00012741,2]
[356049390,1741849593240,-500.0,0.00012741,2]
[356049391,1741849593261,-499.67509402,0.00012741,2]
[356049392,1741849593281,-371.97574609,0.00012741,2]
[356049393,1741849593304,-300.0,0.00012741,2]
[356049394,1741849593326,-873.6056186,0.00012742,2]
[356049395,1741849778492,-1876.07975251,0.00012615,2]
[356049396,1741849778518,-220.91574313,0.00012742,2]
[356049397,1741849778542,-1655.16400938,0.00012742,2]
[356049398,1741849778567,-300.0,0.00012745,2]
[356049399,1741849778592,-1480.87769498,0.00012746,2]
[356049498,1741849843191,-187.73878266,0.00012618,2]
[356049499,1741849843212,-300.0,0.00012745,2]
[356049500,1741849843223,-56.82155019,0.00012746,2]
[356049508,1741850052553,500.0,0.0001,2]
[356049509,1741850087399,500.0,0.0001,2]
[356049510,1741850100293,500.0,0.0001,2]
[356049511,1741850109545,500.0,0.0001,2]
[356049512,1741850127052,500.0,0.0001,2]
[356049513,1741850137247,500.0,0.0001,2]
[356049514,1741850151239,500.0,0.0001,2]
[356049515,1741850161605,500.0,0.0001,2]
[356049516,1741850170437,429.27396105,0.0001,2]
[356049520,1741850961150,-150.0,0.00011,2]
[356049521,1741850961172,-300.0,0.00011999,2]
[356049522,1741850961196,-176.77744206,0.00011999,2]
[356049523,1741850961220,-500.0,0.00011999,2]
[356049524,1741850961243,-233.0574495,0.00011999,2]
[356049525,1741850961267,-2158.83583176,0.00012,2]
[356049526,1741851003699,-300.0,0.00011999,2]
[356049527,1741851003725,-1047.9683,0.00012,2]
[356049558,1741851038007,-30215.41470073,0.00012,2]
[356049559,1741851038016,-208.0,0.000122,2]
[356049560,1741851038025,-587.02669282,0.000124,2]
[356049561,1741851038034,-14584.49215159,0.00012544,2]
[356049562,1741851038046,-4816.17765286,0.00012544,2]
[356049607,1741851776685,-5000.0,0.00010849,2]
[356049608,1741851776716,-500.0,0.00010958,2]
[356049609,1741851776741,-500.0,0.00010958,2]
[356049610,1741851776764,-525.60063822,0.00010958,2]
[356049611,1741851776786,-178.81399561,0.00010958,2]
[356049612,1741851776811,-500.0,0.00010958,2]
[356049613,1741851776834,-500.0,0.00010958,2]
[356049614,1741851776857,-500.0,0.00010958,2]
[356049615,1741851776881,-500.0,0.00010958,2]
[356049616,1741851776904,-500.0,0.00010958,2]
[356049617,1741851776926,-500.0,0.00010958,2]
[356049618,1741851776948,-300.0,0.00010958,2]
[356049619,1741851776971,-367.56,0.00010959,2]
[356049620,1741851776994,-306.3,0.00010959,2]
[356049621,1741851777017,-255.25,0.00010959,2]
[356049622,1741851777039,-212.71,0.00010959,2]
[356049623,1741851777060,-177.26,0.00010959,2]
[356049624,1741851777085,-886.3,0.00010959,2]
[356049625,1741851777106,-5000.0,0.00011642,2]
[356049626,1741851777128,-322.47015548,0.00011999,2]
[356049627,1741851777152,-467.61639386,0.00011999,2]
[356049628,1741851777175,-500.0,0.00012,7]
[356049629,1741851777196,-500.0,0.00012,7]
[356049630,1741851777216,-500.0,0.00012,7]
[356049631,1741851777238,-500.0,0.00012,7]
[356049632,1741851777259,-500.0,0.00012,7]
[356049633,1741851777280,-500.0,0.00012,7]
[356049634,1741851777301,-500.0,0.00012,7]
[356049635,1741851777324,-500.0,0.00012,7]
[356049636,1741851777346,-500.0,0.00012,7]
[356049637,1741851777370,-14679.62745008,0.00012,2]
[356049638,1741851777393,-420.0,0.00012042,2]
[356049639,1741851777415,-492.18322147,0.00012068,2]
[356049640,1741851777442,-459.7589889,0.000121,2]
[356049641,1741851777466,-559.6044626,0.00012178,2]
[356049642,1741851777490,-155.4628988,0.00012178,2]
[356049643,1741851777514,-335.6896956,0.00012178,2]
[356049644,1741851777538,-2304.1078411,0.00012235,2]
[356049645,1741851777562,-167.8448478,0.000123,2]
[356049646,1741851777586,-357.1226405,0.000123,2]
[356049647,1741851777610,-171.8969915,0.00012378,2]
[356049648,1741851777632,-727.65792353,0.000125,2]
[356049649,1741851777654,-511.0830321,0.000125,2]
[356049650,1741851777676,-559.6044626,0.000125,2]
[356049651,1741851777699,-155.4628988,0.000125,2]
[356049652,1741851777721,-357.1226405,0.000125,2]
[356049653,1741851777743,-153.0,0.000125,2]
[356049654,1741851777765,-186.8724011,0.000125,2]
[356049655,1741851777788,-155.4628988,0.000125,2]
[356049656,1741851777810,-559.6044626,0.000125,2]
[356049657,1741851777832,-357.1226405,0.000125,2]
[356049658,1741851777854,-151.0,0.000125,2]
[356049659,1741851777876,-151.0,0.000125,2]
[356049660,1741851777897,-151.0,0.000125,2]
[356049661,1741851777919,-151.0,0.000125,2]
[356049662,1741851777942,-781.48047151,0.00012542,2]
[356049663,1741851777964,-8333.31,0.00012543,2]
[356049664,1741851777985,-152.1447,0.00012543,2]
[356049665,1741851778008,-151.47097,0.00012543,2]
[356049666,1741851778029,-151.0,0.00012543,2]
[356049667,1741851778049,-151.0,0.00012543,2]
[356049668,1741851778070,-151.0,0.00012543,2]
[356049669,1741851778091,-151.0,0.00012543,2]
[356049670,1741851778112,-151.0,0.00012543,2]
[356049671,1741851778133,-151.0,0.00012543,2]
[356049672,1741851778154,-151.0,0.00012543,2]